bitfinex/quotes_SOLUSD_20250710
["timestamp","ask_amount","ask_price","bid_price","bid_amount"]
[1752131716497,0.06,158.41,158.4,5.74137757]
[1752131716810,0.06,158.41,158.4,12.05450888]
[1752131717211,0.06,158.41,158.4,38.05450888]
[1752131717418,0.06,158.41,158.4,43.79588645]
[1752131719702,0.06,158.41,158.4,78.81588645]
[1752131721304,0.06,158.41,158.4,67.33313131]
[1752131721500,0.06,158.41,158.4,73.07450888]
[1752131723394,0.06,158.41,158.4,78.81588645]
[1752131723795,0.06,158.41,158.4,73.07450888]
[1752131724808,0.06,158.41,158.4,78.81588645]
[1752131727717,6.97752728,158.46,158.4,171.81595959]
[1752131728022,6.97752728,158.47,158.44,5.74137757]
[1752131728319,6.97752728,158.46,158.45,34.98]
[1752131728532,6.97752728,158.47,158.45,34.98]
[1752131728732,6.97752728,158.46,158.45,34.98]
[1752131729018,6.97752728,158.47,158.45,34.98]
[1752131730725,13.28789756,158.47,158.45,34.98]
[1752131730925,19.02927513,158.47,158.45,34.98]
[1752131731137,6.97752728,158.46,158.44,34.98]
[1752131731516,6.97752728,158.46,158.43,40.72137757]
[1752131731836,6.97752728,158.47,158.44,34.98]
[1752131732006,6.97752728,158.46,158.44,34.98]
[1752131732408,6.97752728,158.46,158.44,40.72137757]
[1752131732717,6.97752728,158.47,158.44,40.72137757]
[1752131732912,6.97752728,158.46,158.44,47.03282621]
[1752131733118,6.97752728,158.47,158.44,47.03282621]
[1752131733326,6.97752728,158.46,158.44,47.03282621]
[1752131733524,6.97752728,158.47,158.44,47.03282621]
[1752131734036,6.97752728,158.47,158.44,34.98]
[1752131734209,6.97752728,158.47,158.44,40.72137757]
[1752131734402,7.01145643,158.47,158.44,40.72137757]
[1752131734935,7.01145643,158.47,158.45,5.74137757]
[1752131735143,7.07145643,158.48,158.46,40.70137757]
[1752131735306,0.06,158.48,158.47,5.74137757]
[1752131735501,0.06,158.48,158.46,40.70137757]
[1752131735812,7.07145643,158.48,158.46,40.70137757]
[1752131736027,0.06,158.48,158.46,40.70137757]
[1752131736437,7.07145643,158.48,158.46,34.96]
[1752131736625,0.06,158.48,158.46,40.70137757]
[1752131737048,7.07145643,158.48,158.46,40.70137757]
[1752131737246,7.07145643,158.48,158.46,34.96]
[1752131737247,7.01145643,158.47,158.46,34.96]
[1752131737545,7.01145643,158.47,158.45,34.96]
[1752131737748,7.01145643,158.47,158.46,5.74137757]
[1752131738035,0.06,158.48,158.46,5.74137757]
[1752131738348,7.07145643,158.48,158.47,34.96]
[1752131738629,0.06,158.48,158.47,34.96]
[1752131738838,7.07145643,158.48,158.47,34.96]
[1752131739038,0.06,158.48,158.47,34.96]
[1752131739231,7.07145643,158.48,158.47,34.96]
[1752131739436,12.812834,158.48,158.46,34.94]
[1752131740028,12.812834,158.48,158.43,26.0]
[1752131740227,12.89499557,158.47,158.44,34.94]
[1752131740829,7.153618,158.47,158.44,34.94]
[1752131741641,7.01145643,158.47,158.44,40.68137757]
[1752131741936,7.07145643,158.48,158.45,5.74137757]
[1752131742536,0.06,158.47,158.45,5.74137757]
[1752131742724,0.06,158.47,158.46,34.94]
[1752131742929,0.06,158.47,158.46,40.68137757]
[1752131743135,0.06,158.47,158.46,46.99211845]
[1752131746340,0.06,158.47,158.46,41.25074088]
[1752131746640,0.06,158.47,158.46,46.99211845]
[1752131749643,0.06,158.47,158.46,41.23074088]
[1752131749847,0.06,158.47,158.46,46.97211845]
[1752131750336,0.06,158.47,158.46,34.9]
[1752131750544,0.06,158.47,158.46,40.64137757]
[1752131750719,0.06,158.47,158.46,34.9]
[1752131751328,0.06,158.47,158.46,40.64137757]
[1752131751926,0.06,158.47,158.44,6.31144885]
[1752131752145,0.06,158.47,158.45,40.64137757]
[1752131752830,0.06,158.47,158.45,34.9]
[1752131753024,0.06,158.47,158.45,40.64137757]
[1752131753431,0.06,158.47,158.46,5.74137757]
[1752131753824,0.06,158.47,158.45,12.05250926]
[1752131754045,0.06,158.47,158.46,34.9]
[1752131757138,0.06,158.47,158.46,46.95211845]
[1752131762457,0.06,158.47,158.46,5.74137757]
[1752131762687,0.06,158.47,158.46,34.86]
[1752131762688,7.09721953,158.47,158.46,34.86]
[1752131763326,7.09721953,158.47,158.46,40.60137757]
[1752131763527,7.09721953,158.47,158.46,34.86]
[1752131763838,7.09721953,158.47,158.46,40.60137757]
[1752131764243,7.09721953,158.47,158.46,5.74137757]
[1752131764448,7.09721953,158.47,158.45,34.86]
[1752131764954,7.09721953,158.47,158.46,5.74137757]
[1752131765336,7.09721953,158.47,158.45,34.86]
[1752131765656,6.96035732,158.46,158.43,38.05326373]
[1752131765831,6.96035732,158.46,158.44,34.86]
[1752131766338,6.96035732,158.46,158.44,40.60137757]
[1752131767155,6.96035732,158.46,158.43,6.31188616]
[1752131767356,6.96035732,158.46,158.44,34.86]
[1752131767654,13.27130957,158.46,158.41,0.03]
[1752131767842,8.008,158.43,158.41,0.03]
[1752131768046,12.70173489,158.42,158.41,0.03]
[1752131768360,31.49354532,158.42,158.41,0.03]
[1752131769157,18.79181043,158.41,158.38,0.03]
[1752131769365,24.39102643,158.39,158.38,0.03]
[1752131769538,31.35138375,158.39,158.38,0.03]
[1752131769739,37.66491364,158.39,158.38,0.03]
[1752131771556,25.75216775,158.39,158.38,0.03]
[1752131771739,30.84671789,158.39,158.38,0.03]
[1752131771939,37.76456313,158.39,158.38,0.03]
[1752131773432,30.84671789,158.39,158.38,0.03]
[1752131774239,25.10534032,158.39,158.38,0.03]
[1752131774444,30.84671789,158.39,158.38,0.03]
[1752131774642,24.533188,158.39,158.38,0.03]
[1752131774854,5.74137757,158.39,158.38,0.03]
[1752131775173,189.268,158.43,158.38,0.03]
[1752131775360,153.76427757,158.43,158.38,0.03]
[1752131775563,7.36427757,158.43,158.39,5.74137757]
[1752131776350,13.676259,158.43,158.38,0.03]
[1752131776535,5.74137757,158.4,158.38,0.03]
[1752131776741,5.74137757,158.39,158.38,0.03]
[1752131777457,24.533188,158.39,158.38,0.03]
[1752131778247,30.84671789,158.39,158.38,0.03]
[1752131779455,25.10534032,158.39,158.38,0.03]
[1752131779654,30.84671789,158.39,158.38,0.03]
[1752131781264,37.75415888,158.39,158.38,0.03]
[1752131784273,44.64964886,158.37,158.36,0.03]
[1752131784459,85.373188,158.37,158.36,0.03]
[1752131785475,91.6875152,158.37,158.36,0.03]
[1752131785671,100.10090073,158.37,158.36,0.03]
[1752131785974,100.10101591,158.37,158.36,0.03]
[1752131786382,100.10101591,158.37,158.36,1e-08]
[1752131786677,100.10101591,158.37,158.35,0.03]
[1752131786678,18.79181043,158.36,158.35,0.03]
[1752131786978,31.39208871,158.36,158.35,0.03]
[1752131787675,37.70681465,158.36,158.35,0.03]
[1752131788668,44.30461465,158.36,158.35,1e-08]
[1752131789253,38.56323708,158.36,158.35,1e-08]
[1752131789582,66.54433637,158.36,158.35,1e-08]
[1752131789768,72.28571394,158.36,158.35,1e-08]
[1752131789962,59.8043748,158.36,158.35,1e-08]
[1752131790173,65.68791394,158.36,158.35,1e-08]
[1752131790368,59.8043748,158.36,158.35,1e-08]
[1752131790565,65.54575237,158.36,158.35,1e-08]
[1752131791274,72.5366034,158.36,158.35,1e-08]
[1752131791490,65.68791394,158.36,158.35,1e-08]
[1752131791985,72.53589628,158.36,158.35,1e-08]
[1752131793562,72.53589628,158.36,158.25,0.2]
[1752131793563,0.14216157,158.31,158.25,0.2]
[1752131793785,5.74137757,158.27,158.25,0.2]
[1752131793965,5.74137757,158.26,158.25,0.2]
[1752131794283,59.21102643,158.26,158.25,0.2]
[1752131794790,1.614,158.38,158.28,26.0]
[1752131794986,0.06,158.41,158.36,5.74137757]
[1752131795164,0.06,158.41,158.35,6.31498234]
[1752131795364,0.06,158.41,158.36,5.74137757]
[1752131795681,5.80137757,158.41,158.36,5.74137757]
[1752131795872,40.64137757,158.41,158.36,5.74137757]
[1752131796072,18.79181043,158.4,158.36,5.74137757]
[1752131796266,0.06,158.41,158.38,5.74137757]
[1752131796465,0.06,158.41,158.39,5.74137757]
[1752131796873,0.06,158.41,158.38,9.57239694]
[1752131797077,0.06,158.41,158.35,22.10279414]
[1752131797404,0.06,158.41,158.38,9.57239694]
[1752131798302,0.06,158.41,158.35,15.7878118]
[1752131798599,0.06,158.41,158.38,9.57239694]
[1752131800289,0.06,158.41,158.38,15.88625192]
[1752131800591,0.06,158.41,158.4,9.57239694]
[1752131801293,0.06,158.41,158.4,15.88552825]
[1752131804402,0.06,158.41,158.4,25.45792519]
[1752131804576,0.06,158.47,158.46,9.57239694]
[1752131805464,0.06,158.47,158.46,6.31074088]
[1752131805671,0.06,158.47,158.46,15.88313782]
[1752131806365,0.06,158.47,158.42,6.3123343]
[1752131806568,0.06,158.47,158.46,9.57239694]
[1752131807571,0.06,158.47,158.42,6.3123343]
[1752131807772,0.06,158.47,158.46,9.57239694]
[1752131809266,9.63239694,158.47,158.42,6.3123343]
[1752131809465,9.63239694,158.47,158.43,9.57239694]
[1752131809886,0.06,158.47,158.44,9.57239694]
[1752131810396,0.06,158.47,158.43,9.57239694]
[1752131811394,0.06,158.47,158.43,15.88425509]
[1752131811980,0.20216157,158.47,158.44,9.57239694]
[1752131812380,0.06,158.47,158.44,9.57239694]
[1752131813476,0.06,158.47,158.44,15.88371943]
[1752131813672,0.06,158.47,158.46,9.57239694]
[1752131815178,0.06,158.47,158.44,56.85016621]
[1752131815374,0.06,158.47,158.46,9.57239694]
[1752131815578,0.06,158.47,158.46,15.88313782]
[1752131816498,0.06,158.47,158.46,6.31074088]
[1752131816686,0.06,158.47,158.46,15.88313782]
[1752131818800,0.06,158.47,158.46,12.04670306]
[1752131819172,0.06,158.47,158.46,38.04670306]
[1752131819817,0.06,158.48,158.46,43.78266524]
[1752131819984,146.5,158.57,158.54,5.73596218]
[1752131820180,0.1,158.57,158.53,5.73596218]
[1752131820406,0.24216157,158.57,158.53,5.73596218]
[1752131820611,5.83596218,158.57,158.53,5.73596218]
[1752131820813,9.5562923,158.56,158.5,34.74]
[1752131820993,9.5562923,158.56,158.51,9.5562923]
[1752131821182,0.14216157,158.56,158.52,9.5562923]
[1752131821382,9.69845387,158.56,158.52,9.5562923]
[1752131821793,0.1,158.57,158.54,9.5562923]
[1752131821991,0.1,158.57,158.55,9.5562923]
[1752131822191,0.1,158.57,158.56,9.5562923]
[1752131822725,0.1,158.57,158.51,22.08062582]
[1752131822897,0.1,158.57,158.56,9.5562923]
[1752131823788,0.1,158.57,158.56,15.86305314]
[1752131824185,0.1,158.57,158.56,35.5562923]
[1752131824988,0.1,158.57,158.56,43.1867923]
[1752131825802,0.1,158.57,158.56,49.49355314]
[1752131826295,0.1,158.57,158.56,32.30676084]
[1752131826600,0.1,158.57,158.55,41.00714015]
[1752131827101,0.1,158.57,158.54,60.7]
[1752131827278,0.1,158.57,158.55,9.5562923]
[1752131827484,0.1,158.57,158.54,32.30718913]
[1752131827702,0.1,158.57,158.55,9.5562923]
[1752131828308,0.1,158.57,158.54,26.0]
[1752131828491,0.1,158.57,158.54,9.5562923]
[1752131831688,0.1,158.57,158.52,66.98831765]
[1752131831894,0.1,158.57,158.53,9.5562923]
[1752131832526,0.1,158.57,158.54,9.5562923]
[1752131833594,0.1,158.57,158.55,6.30715862]
[1752131834035,0.1,158.57,158.54,9.5562923]
[1752131834552,0.1,158.57,158.55,9.5562923]
[1752131834846,0.1,158.57,158.53,6.30795433]
[1752131835014,0.1,158.57,158.56,9.5562923]
[1752131835821,0.1,158.57,158.56,15.86305314]
[1752131836326,0.1,158.57,158.53,6.30795433]
[1752131836523,0.1,158.57,158.55,9.5562923]
[1752131837530,0.1,158.57,158.56,9.5562923]
[1752131837718,0.1,158.57,158.56,15.86305314]
[1752131837920,0.1,158.57,158.56,6.30676084]
[1752131838117,0.1,158.57,158.56,15.86305314]
[1752131839434,0.1,158.57,158.56,6.30676084]
[1752131839622,0.1,158.57,158.56,15.86305314]
[1752131840348,0.1,158.57,158.56,6.30676084]
[1752131840530,0.1,158.57,158.56,15.86305314]
[1752131840844,0.1,158.57,158.56,12.03708821]
[1752131842248,0.1,158.57,158.53,15.76988582]
[1752131842743,0.1,158.57,158.56,5.73032737]
[1752131844042,7.1201739,158.57,158.56,5.73032737]
[1752131844343,0.1,158.57,158.53,22.07784015]
[1752131844546,0.1,158.57,158.56,5.73032737]
[1752131844729,0.1,158.57,158.53,22.07784015]
[1752131845340,0.1,158.57,158.55,6.30691957]
[1752131845526,0.1,158.57,158.56,5.73032737]
[1752131847142,0.1,158.57,158.56,31.73032737]
[1752131847336,0.1,158.57,158.56,26.0]
[1752131847537,0.1,158.57,158.54,32.30755645]
[1752131847930,0.1,158.57,158.55,5.73032737]
[1752131848325,0.1,158.57,158.56,5.73032737]
[1752131849448,0.1,158.57,158.56,12.03708821]
[1752131849950,0.1,158.57,158.56,6.30676084]
[1752131850142,0.1,158.57,158.56,12.03708821]
[1752131851141,0.1,158.57,158.56,38.03708821]
[1752131851835,0.1,158.57,158.56,43.76741558]
[1752131852251,7.0201739,158.62,158.59,26.0]
[1752131852446,0.1,158.63,158.61,5.73032737]
[1752131852766,0.1,158.63,158.62,5.73032737]
[1752131853337,0.1,158.63,158.62,12.0347026]
[1752131857958,0.1,158.63,158.62,6.30437523]
[1752131858161,0.1,158.63,158.62,12.0347026]
[1752131858859,6.4825418,158.72,158.62,12.0347026]
[1752131858860,7.0201739,158.7,158.62,54.52301332]
[1752131859050,7.0201739,158.71,158.69,5.73032737]
[1752131859237,7.0201739,158.7,158.69,5.73032737]
[1752131859548,7.0201739,158.71,158.68,5.73032737]
[1752131859758,7.0201739,158.7,158.66,34.58]
[1752131859962,7.0201739,158.71,158.66,34.58]
[1752131860135,7.0201739,158.7,158.66,34.58]
[1752131860327,7.0201739,158.71,158.69,5.73032737]
[1752131861356,7.20216886,158.72,158.69,5.73032737]
[1752131861530,7.20216886,158.72,158.67,6.3023886]
[1752131861732,7.20216886,158.72,158.68,5.73032737]
[1752131862035,12.93249623,158.72,158.67,6.3023886]
[1752131862230,12.93249623,158.72,158.68,12.03219035]
[1752131862454,12.93249623,158.72,158.66,40.31032737]
[1752131862455,5.73032737,158.7,158.66,40.31032737]
[1752131862845,5.73032737,158.7,158.66,34.58]
[1752131863048,5.73032737,158.7,158.66,40.31032737]
[1752131863245,5.73032737,158.7,158.66,46.61301095]
[1752131864134,7.0201739,158.71,158.66,40.88268358]
[1752131864352,5.73032737,158.7,158.66,46.61301095]
[1752131864650,7.0201739,158.7,158.68,5.73032737]
[1752131864855,7.20216886,158.72,158.69,5.73032737]
[1752131865646,7.0201739,158.71,158.66,56.63964815]
[1752131865958,7.0201739,158.71,158.69,5.73032737]
[1752131866142,7.20216886,158.72,158.69,5.73032737]
[1752131866342,7.20216886,158.72,158.69,12.03153288]
[1752131866938,12.93249623,158.72,158.69,6.30120551]
[1752131867755,7.0201739,158.71,158.69,6.30120551]
[1752131868154,0.18199496,158.72,158.69,12.03153288]
[1752131868738,0.18199496,158.72,158.69,6.30120551]
[1752131868945,0.18199496,158.72,158.69,5.73032737]
[1752131869154,7.20216886,158.72,158.69,5.73032737]
[1752131869355,0.18199496,158.72,158.69,5.73032737]
[1752131869955,0.18199496,158.72,158.7,6.30119722]
[1752131870567,0.18199496,158.72,158.66,50.33696457]
[1752131870868,0.18199496,158.72,158.69,5.73032737]
[1752131871960,0.18199496,158.72,158.7,6.30119722]
[1752131873155,0.18199496,158.72,158.7,12.03152459]
[1752131875462,0.18199496,158.72,158.7,6.30119722]
[1752131875766,0.18199496,158.72,158.71,5.73032737]
[1752131877467,0.18199496,158.72,158.71,12.03112757]
[1752131882566,0.18199496,158.72,158.71,6.3008002]
[1752131882768,0.18199496,158.72,158.71,12.03112757]
[1752131882957,0.18199496,158.72,158.71,40.7808002]
[1752131883358,0.18199496,158.72,158.71,46.51112757]
[1752131883559,0.18199496,158.72,158.71,12.03112757]
[1752131885084,0.18199496,158.72,158.71,6.3008002]
[1752131885294,0.18199496,158.72,158.71,12.03112757]
[1752131885689,0.18199496,158.72,158.71,6.3008002]
[1752131885984,0.18199496,158.72,158.71,12.03112757]
[1752131892391,0.1,158.73,158.71,43.76145494]
[1752131892574,1e-08,158.73,158.72,45.88065474]
[1752131893066,1e-08,158.74,158.72,47.39715474]
[1752131893266,1e-08,158.74,158.73,5.73032737]
[1752131894273,1e-08,158.74,158.73,12.03033367]
[1752131894678,1e-08,158.74,158.73,46.45033367]
[1752131896569,0.06000001,158.74,158.73,46.45033367]
[1752131899795,0.06000001,158.74,158.73,40.7200063]
[1752131899993,0.06000001,158.74,158.73,46.45033367]
[1752131900190,0.06000001,158.74,158.68,90.2321]
[1752131900495,0.06000001,158.74,158.71,5.73032737]
[1752131900871,0.06000001,158.74,158.72,34.38]
[1752131901271,0.06000001,158.74,158.72,40.68029214]
[1752131901707,0.06000001,158.74,158.72,46.41061951]
[1752131902109,0.06000001,158.74,158.72,40.68029214]
[1752131902912,0.06000001,158.74,158.73,34.38]
[1752131903291,0.06000001,158.74,158.73,40.6800063]
[1752131904477,0.06000001,158.74,158.73,34.38]
[1752131905585,0.06000001,158.74,158.72,6.30028367]
[1752131905794,0.06000001,158.74,158.73,34.36]
[1752131907688,0.06000001,158.74,158.71,6.30066559]
[1752131908007,0.06000001,158.74,158.72,34.36]
[1752131909207,0.06000001,158.74,158.72,40.66038107]
[1752131911004,0.06000001,158.74,158.72,6.30038107]
[1752131911190,0.06000001,158.74,158.73,46.37033367]
[1752131913093,0.06000001,158.74,158.73,66.6400063]
[1752131913302,0.06000001,158.74,158.73,72.37033367]
[1752131914296,1e-08,158.74,158.73,72.37033367]
[1752131914901,1e-08,158.74,158.73,72.35033367]
[1752131915498,0.11856161,158.74,158.73,72.35033367]
[1752131916602,0.11856161,158.74,158.73,32.3000063]
[1752131916802,0.11856161,158.74,158.73,72.35033367]
[1752131917805,1e-08,158.74,158.73,72.35033367]
[1752131918008,1e-08,158.74,158.73,66.6200063]
[1752131918314,1e-08,158.74,158.73,161.05033367]
[1752131918512,0.06000001,158.74,158.73,95.0000063]
[1752131918809,0.06000001,158.74,158.72,0.03]
[1752131919102,5.79032738,158.74,158.72,0.03]
[1752131919604,0.06000001,158.74,158.72,0.03]
[1752131920003,5.79032738,158.74,158.72,0.03]
[1752131920205,5.79032738,158.74,158.72,6.33034311]
[1752131921396,0.06000001,158.74,158.73,40.03032737]
[1752131922682,0.06000001,158.74,158.72,0.03]
[1752131922898,0.06000001,158.74,158.73,5.73032737]
[1752131923097,0.06000001,158.74,158.73,40.03032737]
[1752131923285,0.06000001,158.74,158.73,34.3]
[1752131923486,0.06000001,158.74,158.73,40.6000063]
[1752131924403,0.06000001,158.74,158.72,34.33]
[1752131924611,5.79032738,158.74,158.72,0.03]
[1752131924797,5.73032737,158.73,158.72,0.03]
[1752131925196,0.06000001,158.74,158.72,0.03]
[1752131925402,5.73032737,158.73,158.72,0.03]
[1752131926606,5.79032738,158.74,158.72,0.03]
[1752131926795,5.73032737,158.73,158.72,0.03]
[1752131927307,0.06000001,158.74,158.72,0.03]
[1752131927507,5.79032738,158.74,158.72,0.03]
[1752131928292,5.73032737,158.73,158.72,0.03]
[1752131930805,51.27042266,158.73,158.72,0.03]
[1752131931923,18.79181043,158.72,158.64,6.30348487]
[1752131932109,5.73032737,158.67,158.64,6.30348487]
[1752131932300,5.73032737,158.68,158.64,12.03381224]
[1752131933120,34.28,158.72,158.64,22.06243595]
[1752131933293,5.73032737,158.7,158.65,5.73032737]
[1752131933893,5.73032737,158.7,158.64,22.06243595]
[1752131934099,5.73032737,158.7,158.65,5.73032737]
[1752131934300,5.73032737,158.7,158.64,22.06243595]
[1752131934522,5.73032737,158.68,158.64,12.03381224]
[1752131935226,5.73032737,158.68,158.64,6.30348487]
[1752131935437,5.73032737,158.68,158.64,12.03381224]
[1752131936420,6.3009535,158.71,158.64,12.03381224]
[1752131936620,5.73032737,158.68,158.64,12.03381224]
[1752131937319,5.73032737,158.68,158.64,6.30348487]
[1752131937829,5.73032737,158.68,158.64,12.03381224]
[1752131938020,6.30122866,158.7,158.64,12.03381224]
[1752131938219,5.73032737,158.68,158.64,6.30348487]
[1752131938411,6.30077799,158.72,158.66,5.73032737]
[1752131938612,6.58149854,158.72,158.64,21.48927845]
[1752131938920,5.73032737,158.71,158.67,5.73032737]
[1752131939604,8.1174,158.73,158.67,5.73032737]
[1752131939921,5.73032737,158.71,158.67,5.73032737]
[1752131940823,8.1174,158.73,158.64,5.73032737]
[1752131940824,5.73032737,158.68,158.64,5.73032737]
[1752131941627,5.73032737,158.72,158.63,0.03]
[1752131941628,5.73032737,158.67,158.63,0.03]
[1752131941925,5.73032737,158.64,158.63,0.03]
[1752131942340,11.60281631,158.64,158.63,0.03]
[1752131942508,45.86281631,158.64,158.63,0.03]
[1752131942716,52.16639674,158.64,158.63,0.03]
[1752131943108,39.99032737,158.64,158.63,0.03]
[1752131943319,46.95610809,158.67,158.63,0.03]
[1752131943530,6.53324625,158.66,158.63,0.03]
[1752131943910,6.3936,158.67,158.63,0.03]
[1752131943911,5.73032737,158.67,158.63,0.03]
[1752131944111,1.5401,158.68,158.63,0.03]
[1752131944328,38.78561542,158.71,158.65,5.73032737]
[1752131944717,38.78561542,158.71,158.63,0.03]
[1752131944925,5.73032737,158.69,158.65,5.73032737]
[1752131945125,6.4848,158.71,158.65,5.73032737]
[1752131945341,5.73032737,158.71,158.67,5.73032737]
[1752131945512,5.73032737,158.71,158.66,5.73032737]
[1752131945835,5.73032737,158.7,158.65,5.73032737]
[1752131946608,5.73032737,158.72,158.67,5.73032737]
[1752131947118,5.73032737,158.72,158.66,6.30278583]
[1752131947119,5.73032737,158.73,158.68,5.73032737]
[1752131947324,5.73032737,158.72,158.68,5.73032737]
[1752131947726,5.73032737,158.71,158.66,6.30278583]
[1752131947936,6.3596774,158.74,158.67,5.73032737]
[1752131948111,5.73032737,158.71,158.66,6.30278583]
[1752131948311,6.3596774,158.74,158.68,6.30199142]
[1752131948511,5.73032737,158.71,158.68,6.30199142]
[1752131948928,6.3596774,158.74,158.68,6.30199142]
[1752131949134,5.73032737,158.69,158.63,26.03]
[1752131949323,0.14216157,158.69,158.63,0.03]
[1752131949520,25.31167535,158.69,158.63,6.33384042]
[1752131949718,0.14216157,158.69,158.63,0.03]
[1752131949927,34.26,158.7,158.63,0.03]
[1752131949928,5.73032737,158.67,158.63,0.03]
[1752131950369,5.73032737,158.65,158.63,0.03]
[1752131950522,5.73032737,158.64,158.63,0.03]
[1752131951134,6.30212879,158.68,158.63,0.03]
[1752131951337,5.73032737,158.66,158.63,0.03]
[1752131951646,5.73032737,158.64,158.63,0.03]
[1752131952651,0.14216157,158.64,158.63,0.03]
[1752131952824,18.79181043,158.64,158.63,0.03]
[1752131953151,31.91236517,158.64,158.63,0.03]
[1752131953332,5.73032737,158.58,158.57,0.2]
[1752131954443,36.55843061,158.58,158.57,0.2]
[1752131954613,30.82810324,158.58,158.57,0.2]
[1752131955828,42.83533061,158.58,158.48,6.5098694]
[1752131956141,0.14216157,158.55,158.48,6.5098694]
[1752131956339,0.14216157,158.55,158.48,0.2]
[1752131956523,6.44941859,158.55,158.48,6.50987554]
[1752131956919,0.14216157,158.53,158.48,0.2]
[1752131957122,9.56159874,158.49,158.48,0.2]
[1752131958233,28.35340917,158.49,158.48,0.2]
[1752131958445,34.66295551,158.49,158.48,0.2]
[1752131959328,18.79181043,158.48,158.47,0.03]
[1752131959524,18.79181043,158.48,158.39,6.31351059]
[1752131959829,0.14216157,158.47,158.4,9.56159874]
[1752131960033,54.60964886,158.48,158.41,9.56159874]
[1752131960034,9.56159874,158.46,158.41,9.56159874]
[1752131960246,35.96,158.48,158.39,22.09733532]
[1752131960430,9.56159874,158.46,158.41,9.56159874]
[1752131960742,35.96,158.48,158.42,6.3123343]
[1752131960948,0.14216157,158.48,158.42,6.3123343]
[1752131961147,26.0,158.5,158.42,22.09317005]
[1752131961349,9.56159874,158.48,158.42,22.09317005]
[1752131961533,0.14216157,158.49,158.42,6.3123343]
[1752131961730,9.56159874,158.47,158.42,15.87393304]
[1752131961926,0.14216157,158.49,158.42,15.87393304]
[1752131962241,0.14216157,158.49,158.43,9.56159874]
[1752131962627,9.56159874,158.47,158.44,6.31153749]
[1752131963128,26.0,158.5,158.44,6.31153749]
[1752131963329,9.56159874,158.48,158.44,6.31153749]
[1752131963967,9.56159874,158.49,158.44,15.87313623]
[1752131964141,54.60964886,158.53,158.44,22.09038121]
[1752131964441,9.56159874,158.5,158.44,22.09038121]
[1752131964650,9.56159874,158.5,158.47,6.31034265]
[1752131965147,9.56159874,158.51,158.47,6.31034265]
[1752131965380,9.56159874,158.5,158.47,6.31034265]
[1752131965557,9.56159874,158.48,158.42,6.3123343]
[1752131965736,36.16216157,158.49,158.42,6.3123343]
[1752131965931,9.56159874,158.44,158.42,6.3123343]
[1752131966234,9.56159874,158.46,158.42,6.3123343]
[1752131966454,36.16216157,158.49,158.42,6.3123343]
[1752131966662,9.56159874,158.45,158.41,6.31273278]
[1752131967148,9.56159874,158.44,158.41,6.31273278]
[1752131967723,0.14216157,158.47,158.41,6.31273278]
[1752131968151,9.56159874,158.44,158.41,6.31273278]
[1752131969146,0.14216157,158.47,158.41,6.31273278]
[1752131969560,9.56159874,158.45,158.41,6.31273278]
[1752131970149,9.56159874,158.44,158.41,6.31273278]
[1752131970365,6.45256172,158.47,158.41,6.31273278]
[1752131970564,9.56159874,158.44,158.41,6.31273278]
[1752131971466,9.56159874,158.43,158.41,6.31273278]
[1752131972045,6.45256172,158.47,158.41,6.31273278]
[1752131972249,9.56159874,158.43,158.41,6.31273278]
[1752131973649,9.56159874,158.42,158.4,32.31299091]
[1752131973850,9.56159874,158.41,158.37,22.06125464]
[1752131974052,9.56159874,158.4,158.38,6.31392852]
[1752131974243,36.64,158.44,158.38,6.31392852]
[1752131974871,46.20159874,158.44,158.38,6.31392852]
[1752131975165,9.56159874,158.43,158.39,9.56159874]
[1752131975385,9.56159874,158.43,158.38,6.31392852]
[1752131975537,9.56159874,158.43,158.39,9.56159874]
[1752131975865,9.56159874,158.43,158.38,6.31392852]
[1752131976064,36.64,158.44,158.4,6.31313131]
[1752131976065,9.56159874,158.42,158.4,6.31313131]
[1752131976360,9.56159874,158.41,158.38,6.31380343]
[1752131976949,0.14216157,158.43,158.38,6.31380343]
[1752131977151,9.56159874,158.41,158.38,6.31380343]
[1752131977349,9.56159874,158.41,158.37,6.3143272]
[1752131977666,0.14216157,158.43,158.37,15.87592594]
[1752131977846,0.14216157,158.43,158.38,26.0]